bitfinex-derivatives/quotes_ETHF0:USTF0_20230702
["timestamp","ask_amount","ask_price","bid_price","bid_amount"]
[1688336870457,0.00765931,1958.6,1958.5,5.0]
[1688336870653,3.3098,1959.1,1959.0,5.0]
[1688336870852,3.45981634,1959.1,1959.0,5.28671635]
[1688336871053,3.45981634,1959.1,1958.1,12.823]
[1688336871054,0.78426289,1958.9,1958.1,12.823]
[1688336871264,3.2078,1958.3,1957.6,5.0]
[1688336871466,3.2078,1958.2,1957.8,5.0]
[1688336871661,0.00766107,1958.1,1957.9,0.56748412]
[1688336871961,3.2078,1958.5,1958.1,5.0]
[1688336872162,0.78426289,1958.9,1958.0,13.43707948]
[1688336872163,3.2078,1958.3,1958.0,1.82036313]
[1688336872352,3.2078,1958.3,1957.8,0.00766107]
[1688336872353,0.102,1958.0,1957.8,0.00766107]
[1688336872555,3.3098,1957.9,1957.8,0.00766107]
[1688336872754,3.2954701,1957.9,1957.8,0.00766107]
[1688336872954,3.28780903,1957.9,1957.8,0.00766107]
[1688336873154,3.3098,1957.9,1957.8,0.00766107]
[1688336873354,6.45981634,1957.9,1957.8,0.00766107]
[1688336873549,3.45981634,1957.9,1957.1,12.823]
[1688336873766,3.2078,1957.5,1956.9,11.436]
[1688336874059,0.102,1957.4,1956.9,16.436]
[1688336874258,0.102,1957.4,1957.0,14.52349452]
[1688336874464,0.102,1957.4,1957.0,14.53115853]
[1688336874651,0.102,1957.3,1957.0,3.21546401]
[1688336874852,0.102,1956.8,1956.7,4.9581]
[1688336875057,0.102,1956.8,1956.4,3.2078]
[1688336875261,0.102,1956.4,1955.6,27.4668]
[1688336875461,3.2078,1956.2,1955.7,5.0]
[1688336875653,3.2078,1956.2,1955.7,5.2796781]
[1688336875855,0.00766891,1956.1,1955.8,5.98386497]
[1688336876057,0.00766891,1956.1,1956.0,5.181]
[1688336876259,0.102,1956.6,1956.1,5.181]
[1688336876459,0.102,1957.0,1956.5,8.3888]
[1688336876659,3.2078,1957.5,1956.7,3.2078]
[1688336876853,3.2078,1956.9,1956.6,0.78637418]
[1688336877060,0.15001634,1956.8,1956.4,5.0]
[1688336877260,0.1576827,1956.8,1956.4,8.21546636]
[1688336877654,3.2078,1956.5,1956.4,0.00766636]
[1688336877855,3.2078,1956.5,1955.7,5.0]
[1688336877856,3.35781634,1956.5,1955.7,5.0]
[1688336878159,3.35781634,1956.5,1955.7,3.2078]
[1688336878160,3.2078,1956.2,1955.7,3.2078]
[1688336878354,3.2078,1956.4,1955.8,0.56748412]
[1688336878558,3.2078,1956.4,1955.8,5.96253955]
[1688336878758,3.2078,1956.4,1955.8,0.56748412]
[1688336878960,3.2078,1956.0,1955.9,0.00766832]
[1688336879157,0.15001634,1956.0,1955.9,0.00766832]
[1688336879359,0.15001634,1956.0,1955.9,0.37100568]
[1688336879558,3.2078,1956.6,1955.9,0.65772203]
[1688336879963,3.2078,1956.4,1955.9,0.65772203]
[1688336880161,3.2078,1956.0,1955.9,0.37100568]
[1688336880359,3.35781634,1956.0,1955.9,0.37100568]
[1688336880753,0.00766636,1956.8,1955.9,13.48072203]
[1688336880960,3.2078,1956.7,1956.3,5.181]
[1688336881261,0.00766636,1956.8,1956.5,5.181]
[1688336881462,0.00766636,1956.8,1956.4,0.56748412]
[1688336881463,3.2078,1957.2,1956.6,0.28671635]
[1688336881660,0.102,1956.7,1956.6,0.07735805]
[1688336881868,0.102,1956.7,1955.9,0.00766832]
[1688336881869,0.25201634,1956.7,1955.9,12.83066832]
[1688336882158,0.102,1956.3,1955.8,3.2078]
[1688336882361,0.102,1955.8,1955.1,3.2078]
[1688336882555,0.102,1955.9,1955.2,5.0]
[1688336882754,0.102,1955.9,1955.1,26.63101363]
[1688336882956,3.2078,1956.4,1955.6,21.2468]
[1688336883155,3.2078,1956.8,1956.0,18.039]
[1688336883356,0.5168,1957.1,1956.2,12.858]
[1688336883668,0.5168,1957.1,1956.5,5.181]
[1688336883669,0.102,1957.0,1956.5,5.181]
[1688336883966,0.102,1956.7,1956.2,10.56341986]
[1688336884161,3.2078,1956.9,1956.4,5.181]
[1688336884356,0.5168,1957.1,1956.6,5.181]
[1688336884357,0.00766616,1956.8,1956.6,5.181]
[1688336884564,0.00766616,1956.8,1956.7,0.28671635]
[1688336885159,0.1576825,1956.8,1956.7,0.28671635]
[1688336885360,0.1576825,1956.8,1956.1,16.385]
[1688336885361,0.10966616,1956.8,1956.1,16.385]
[1688336885564,0.102,1956.6,1956.2,5.0]
[1688336885770,3.3098,1956.7,1956.2,5.0]
[1688336885965,3.3098,1956.7,1956.0,3.2078]
[1688336885966,0.102,1956.6,1956.0,3.2078]
[1688336886162,3.2078,1956.7,1955.8,0.00766871]
[1688336886163,3.2078,1956.2,1955.8,0.00766871]
[1688336886369,0.102,1955.9,1955.4,13.3888]
[1688336886571,3.2078,1956.0,1955.7,5.181]
[1688336886867,3.7246,1957.7,1956.8,12.858]
[1688336887058,3.7246,1957.6,1956.9,3.2078]
[1688336887263,3.7246,1957.6,1956.4,5.0]
[1688336887264,3.2078,1957.2,1956.4,5.0]
[1688336887561,3.2078,1957.0,1956.5,0.11430823]
[1688336887762,0.00766577,1956.9,1956.6,0.00766577]
[1688336888062,3.2078,1957.5,1956.7,26.53351635]
[1688336888257,3.2078,1957.5,1956.7,26.50161635]
[1688336888655,3.7246,1957.9,1957.1,3.2078]
[1688336888858,3.7246,1957.9,1957.1,8.3888]
[1688336888859,3.2078,1957.9,1957.1,8.3888]
[1688336889066,3.2078,1957.9,1957.1,3.2078]
[1688336889264,3.2078,1957.9,1957.1,8.3888]
[1688336889663,3.2078,1957.5,1956.8,5.0]
[1688336889869,3.2078,1957.7,1956.8,5.0]
[1688336890066,3.2078,1957.7,1956.9,23.96967103]
[1688336890276,3.2078,1957.7,1956.9,5.181]
[1688336890766,3.2078,1957.7,1956.9,8.3888]
[1688336891364,3.2078,1957.9,1957.2,5.181]
[1688336891670,3.2078,1957.9,1957.2,10.181]
[1688336891873,3.2078,1957.5,1956.8,5.0]
[1688336892061,3.2078,1957.1,1956.6,0.00766577]
[1688336892470,3.2078,1957.1,1956.7,0.10293645]
[1688336893067,0.5168,1957.7,1956.7,0.10293645]
[1688336893068,3.2078,1956.9,1956.7,0.10293645]
[1688336893374,9.5820328,1958.1,1956.7,0.3896528]
[1688336893375,3.2078,1957.3,1956.7,0.3896528]
[1688336893873,3.2078,1957.3,1956.7,3.5974528]
[1688336894472,3.2078,1956.9,1956.7,0.10293645]
[1688336894665,0.18191635,1956.8,1956.7,0.25334789]
[1688336895174,0.00766675,1956.7,1956.0,5.181]
[1688336896163,3.2078,1956.6,1956.2,0.00766734]
[1688336896772,0.00766675,1956.7,1956.2,0.00766734]
[1688336896968,3.2078,1956.6,1956.2,0.00766734]
[1688336897167,3.2078,1956.5,1956.2,0.00766734]
[1688336897368,0.18191635,1956.4,1956.2,0.00766734]
[1688336897574,0.00766675,1956.7,1956.2,0.00766734]
[1688336897973,3.2078,1956.4,1955.7,3.2078]
[1688336898866,0.00766675,1956.7,1955.9,16.0658]
[1688336899070,0.00766675,1956.7,1956.1,3.21546754]
[1688336899268,0.00766675,1956.7,1956.5,3.2078]
[1688336899573,19.7473519,1957.9,1957.0,18.039]
[1688336899574,1.4983519,1957.9,1957.0,18.039]
[1688336899771,3.2078,1958.7,1957.6,12.858]
[1688336899973,3.2078,1958.8,1958.1,3.2078]
[1688336900374,3.21545912,1958.6,1958.3,0.00765912]
[1688336900680,0.18191635,1958.5,1958.3,0.00765912]
[1688336902082,0.02343665,1958.3,1957.9,3.2078]
[1688336902284,0.02343665,1958.3,1958.0,0.56748412]
[1688336902588,0.18191635,1958.2,1957.6,3.2078]
[1688336902987,3.38971635,1958.2,1957.7,0.00766127]
[1688336903194,3.2078,1957.9,1957.7,0.00766127]
[1688336903396,0.18191635,1957.8,1957.7,0.00766127]
[1688336903598,0.18191635,1957.8,1957.1,8.3888]
[1688336903793,3.2078,1957.7,1957.1,3.2078]
[1688336904497,3.2078,1958.0,1957.3,3.2078]
[1688336904700,0.00766225,1957.8,1957.5,0.00766225]
[1688336904897,3.38971635,1957.7,1957.5,0.00766225]
[1688336905493,0.18191635,1957.7,1957.5,0.2943786]
[1688336905797,0.00766225,1957.8,1957.5,0.2943786]
[1688336906098,0.00766225,1957.8,1957.5,0.00766225]
[1688336906099,3.2078,1957.7,1957.5,0.00766225]
[1688336906296,8.0,1957.5,1956.7,12.858]
[1688336906500,8.0,1957.5,1956.2,3.2078]
[1688336906501,3.2078,1956.9,1956.2,3.2078]
[1688336906707,3.2078,1956.7,1956.2,3.2078]
[1688336906901,8.0,1957.5,1955.3,11.441]
[1688336906902,3.2078,1956.5,1955.9,3.2078]
[1688336907094,3.2078,1956.5,1956.3,0.07753295]
[1688336907395,0.00766714,1956.6,1956.3,0.28671635]
[1688336907609,0.00766714,1956.6,1956.4,0.07749539]
[1688336907798,0.205353,1956.5,1955.4,12.858]
[1688336907999,3.2078,1956.2,1955.6,3.2078]
[1688336909002,3.2078,1956.2,1955.7,0.0076691]
[1688336909407,3.2078,1956.2,1955.8,0.26273532]
[1688336910305,3.2078,1956.5,1955.8,0.83021944]
[1688336910510,3.2078,1956.5,1955.9,3.2078]
[1688336911002,3.2078,1956.5,1956.0,0.16223347]
[1688336911198,0.00766714,1956.6,1956.3,3.2078]
[1688336911395,0.00766714,1956.6,1956.1,5.74848412]
[1688336911396,5.1415,1957.4,1956.5,16.0658]
[1688336911606,3.2078,1957.4,1956.5,16.0658]
[1688336911800,3.2078,1957.4,1956.6,4.0521777]
[1688336912197,3.2078,1957.4,1956.7,5.181]
[1688336912495,11.461,1958.2,1957.0,8.3888]
[1688336912496,0.0076646,1957.2,1957.0,8.3888]
[1688336912696,0.0076646,1957.2,1957.1,5.85328412]
[1688336913208,3.2078,1957.7,1957.1,5.85328412]
[1688336913406,3.2078,1957.7,1957.1,3.55054641]
[1688336913605,0.108,1958.1,1957.1,3.55054641]
[1688336913606,0.108,1958.1,1957.3,19.77109282]
[1688336913906,0.108,1958.1,1957.5,8.3888]
[1688336913907,0.0569622,1958.0,1957.5,8.3888]
[1688336914106,0.0569622,1958.0,1957.8,3.2078]
[1688336914107,0.00766186,1957.9,1957.8,3.2078]
[1688336914307,0.0569622,1958.0,1957.8,5.181]
[1688336914509,0.0578761,1957.9,1957.6,3.2078]
[1688336914706,0.0578761,1957.9,1957.7,0.56748412]
[1688336914908,0.39084881,1957.6,1957.3,5.181]
[1688336915306,0.39851184,1957.6,1957.2,5.181]
[1688336915511,0.06153264,1957.5,1957.2,5.181]
[1688336916011,0.56748412,1957.4,1957.2,5.74848412]
[1688336916211,0.56748412,1957.4,1957.0,5.181]
[1688336916510,0.06336147,1957.3,1957.0,5.181]
[1688336917006,0.56748412,1957.4,1957.0,5.181]
[1688336917305,0.06427602,1957.2,1957.1,10.77587264]
[1688336917502,6.78748269,1957.4,1957.1,10.77587264]
[1688336917699,6.78748269,1957.3,1957.2,5.74848412]
[1688336917912,0.06336147,1957.3,1957.2,5.74848412]
[1688336918109,0.39851184,1957.6,1957.2,5.74848412]
[1688336918405,0.39851184,1957.6,1957.5,5.181]
[1688336918715,0.68522819,1957.6,1957.4,0.56748412]
[1688336918908,0.68522819,1957.6,1956.8,21.0588]
[1688336918909,7.47271088,1957.6,1956.8,21.0588]
[1688336919108,6.78748269,1957.5,1956.8,21.0588]
[1688336919406,3.2078,1957.2,1956.6,12.851]
[1688336919601,3.2078,1957.2,1956.7,5.181]
[1688336919602,0.85420047,1957.1,1956.7,5.181]
[1688336920007,0.85420047,1957.1,1956.6,12.851]
[1688336920008,7.64168316,1957.1,1956.6,12.851]
[1688336920207,7.64168316,1957.1,1955.1,3.0]
[1688336920208,9.99528269,1957.0,1956.2,16.0588]
[1688336920408,3.2078,1956.8,1956.2,3.2078]
[1688336920609,9.99528269,1956.8,1956.3,5.181]
[1688336920799,9.99528269,1956.8,1955.8,5.0]
[1688336920800,3.2078,1956.4,1955.8,3.2078]
[1688336921215,0.00766832,1956.3,1955.9,0.08816585]
[1688336921407,0.57515244,1956.3,1955.9,0.08816585]
[1688336921602,7.36263513,1956.3,1955.9,0.08816585]
[1688336921906,7.36263513,1956.3,1955.9,0.15868902]
[1688336921907,9.99528269,1956.2,1955.9,0.15868902]
[1688336922100,7.64168316,1956.1,1955.9,0.15868902]
[1688336922309,6.78748269,1956.0,1955.9,0.15868902]
[1688336923605,7.07419904,1956.0,1955.9,0.15868902]
[1688336923813,6.78748269,1956.0,1955.9,0.15868902]
[1688336924401,0.09568269,1956.0,1955.9,5.62424471]
[1688336924608,0.00766832,1956.3,1955.9,10.72171869]
[1688336924913,0.57515244,1956.3,1956.2,3.2078]
[1688336925111,0.57515244,1956.3,1956.0,3.28111527]
[1688336925605,0.28671635,1956.2,1956.0,0.07331527]
[1688336925807,0.56748412,1956.1,1956.0,0.07331527]
[1688336926004,0.00766832,1956.3,1956.2,5.181]
[1688336926310,0.5168,1957.0,1956.2,21.2398]
[1688336926514,0.5168,1957.0,1956.5,3.2078]
[1688336926712,0.56748412,1956.9,1956.5,3.2078]
[1688336927109,0.57515009,1956.9,1956.5,8.3888]
[1688336927309,0.57515009,1956.9,1956.8,3.2078]
[1688336927310,0.00766597,1956.9,1956.8,3.2078]
[1688336927904,0.00766597,1956.9,1956.7,0.56748412]
[1688336928316,0.00766597,1956.9,1956.8,3.2078]
[1688336928510,0.02766597,1956.9,1956.8,3.2078]
[1688336929117,0.31438232,1956.9,1956.8,3.2078]
[1688336929516,1.43828815,1957.6,1956.8,3.2078]
[1688336929517,0.92148815,1957.8,1956.9,18.032]
[1688336929814,0.01,1957.9,1957.2,5.181]
[1688336930017,0.01,1957.9,1957.3,5.74848412]
[1688336930311,0.01,1957.9,1957.6,5.181]
[1688336930516,0.01,1957.9,1957.7,0.28671635]
[1688336930709,0.05879009,1957.8,1957.6,5.71981249]
[1688336930907,0.01765569,1957.9,1957.6,0.56748412]
[1688336931217,0.05970418,1957.7,1957.6,0.56748412]
[1688336931413,0.28671635,1957.8,1957.6,0.85420047]
[1688336931611,0.57348279,1957.8,1957.6,0.56748412]
[1688336931810,0.57348279,1957.8,1956.9,3.2078]
[1688336931811,0.08610119,1957.5,1956.9,3.2078]
[1688336932013,3.2078,1957.4,1956.9,3.2078]
[1688336932214,1.10133572,1957.3,1956.9,3.2078]
[1688336932417,1.10133572,1957.3,1955.9,3.40730781]
[1688336932418,3.2078,1957.2,1956.6,3.2078]
[1688336932616,3.27207602,1957.2,1956.6,3.2078]
[1688336932813,3.27207602,1957.2,1956.7,0.00766518]
[1688336932814,0.00766518,1957.1,1956.7,0.00766518]
[1688336933116,3.2078,1957.0,1956.7,0.00766518]
[1688336933318,0.28671635,1956.9,1956.7,0.00766518]
[1688336933524,0.56748412,1956.8,1956.7,0.00766518]
[1688336933706,0.6354193,1956.8,1956.7,0.00766518]
[1688336934020,0.6354193,1956.8,1956.7,0.29438153]
[1688336934511,0.6354193,1956.8,1956.7,0.28671635]
[1688336934512,0.56748412,1956.8,1956.7,0.28671635]
[1688336934717,0.92213565,1956.8,1956.3,4.6645]
[1688336935118,0.85420047,1956.8,1956.3,4.6645]
[1688336935619,0.85420047,1956.8,1956.4,0.00766656]
[1688336936623,4.06200047,1956.8,1956.4,0.00766656]
[1688336936822,0.85420047,1956.8,1956.4,0.00766656]
[1688336937224,0.56748412,1956.8,1956.4,0.00766656]
[1688336937426,0.00766518,1957.1,1956.4,8.39646656]
[1688336937917,0.00766518,1957.1,1956.4,3.21546656]
[1688336938125,3.2078,1956.8,1956.4,0.00766656]
[1688336938316,0.06610541,1957.0,1956.4,0.00766656]
[1688336938317,3.2078,1956.6,1956.4,0.00766656]
[1688336938516,0.28671635,1956.5,1956.4,0.00766656]
[1688336938717,0.56748412,1956.6,1956.4,0.00766656]
[1688336939023,0.85420047,1956.6,1956.4,0.00766656]
[1688336939226,0.56748412,1956.6,1956.4,0.00766656]
[1688336939626,4.06200047,1956.6,1956.4,0.00766656]
[1688336940731,0.002,1956.3,1955.4,12.8505]
[1688336940927,3.2078,1956.0,1955.3,5.181]
[1688336941327,3.2078,1956.0,1955.3,5.49204493]
[1688336941629,3.2078,1956.0,1955.5,0.00767008]
[1688336941630,0.00767008,1955.8,1955.5,0.00767008]
[1688336941821,0.00767008,1955.8,1955.5,3.21547008]
[1688336942626,0.5751542,1955.8,1955.5,3.21547008]
[1688336943032,0.00767008,1955.8,1955.5,3.21547008]
[1688336943722,0.5751542,1955.8,1955.5,3.21547008]
[1688336945329,0.28671635,1955.7,1955.5,3.21547008]
[1688336945522,0.56748412,1955.6,1955.5,3.21547008]
[1688336946038,0.102,1955.4,1954.8,5.181]
[1688336946231,0.102,1955.4,1954.7,3.2078]
[1688336946629,3.2078,1955.5,1955.0,3.2078]
[1688336946821,0.102,1955.7,1954.8,26.96050965]
[1688336947021,0.102,1955.6,1955.1,0.00767165]
[1688336947328,0.102,1955.4,1955.1,0.00767165]
[1688336947527,0.38871635,1955.3,1955.1,0.00767165]
[1688336947726,0.66948412,1955.2,1955.1,0.00767165]
[1688336947922,0.66948412,1955.2,1954.6,3.2078]
[1688336947923,0.102,1955.1,1954.6,3.2078]
[1688336948328,0.56748412,1955.0,1954.6,3.2078]
[1688336948532,0.56748412,1955.0,1954.6,2.6913]
[1688336948922,0.56748412,1955.0,1954.6,2.69642558]
[1688336949128,0.56748412,1955.0,1954.6,7.87742558]
[1688336949330,3.2078,1955.4,1954.6,2.69642558]
[1688336949529,0.102,1955.3,1954.6,2.69642558]
[1688336949738,0.102,1955.1,1954.6,2.69642558]
[1688336949929,0.56748412,1955.0,1954.6,2.69642558]
[1688336950125,3.77528412,1955.0,1954.6,2.69642558]
[1688336950431,0.56748412,1955.0,1954.6,2.69642558]
[1688336952244,0.56748412,1955.0,1954.0,0.1]
[1688336952245,3.2078,1954.7,1954.0,0.1]
[1688336952535,3.2078,1954.3,1953.5,12.85989767]
[1688336952724,3.2078,1954.4,1953.6,3.2078]
[1688336953126,0.00767636,1954.2,1953.9,5.181]
[1688336953534,3.2078,1954.8,1954.1,5.181]
[1688336953927,3.2078,1954.8,1954.2,10.72079286]
[1688336954334,3.2078,1954.8,1954.3,8.3888]
[1688336954532,0.57515852,1954.7,1954.4,0.0076744]
[1688336954738,0.28671635,1954.6,1954.4,0.0076744]
[1688336954937,0.28671635,1954.6,1954.5,0.50910795]
[1688336956045,3.49451635,1954.6,1954.5,0.50910795]
[1688336956636,0.57515852,1954.7,1954.5,0.50910795]
[1688336956637,0.0076744,1954.7,1954.5,0.50910795]
[1688336956838,0.41983904,1955.0,1954.6,8.3888]
[1688336957141,0.92148815,1955.6,1954.9,8.3888]
[1688336957337,3.3098,1955.8,1954.9,8.3888]
[1688336957338,4.23128815,1955.8,1954.9,8.3888]
[1688336957535,4.23128815,1955.8,1955.0,0.25628847]
[1688336957943,0.00767106,1955.6,1955.0,0.25628847]
[1688336958846,3.21547106,1955.6,1955.0,0.25628847]
[1688336960845,0.00767106,1955.6,1955.2,5.181]
[1688336961236,0.00767106,1955.6,1955.3,0.13799443]
[1688336961448,0.00767106,1955.6,1955.3,8.52679443]
[1688336961946,0.00767106,1955.6,1955.3,5.31899443]
[1688336962144,0.00767106,1955.6,1955.3,0.13799443]
[1688336962341,0.28671635,1955.5,1955.3,0.13799443]
[1688336962537,0.28671635,1955.5,1955.1,8.3888]
[1688336963335,0.56748412,1955.4,1955.1,8.3888]
[1688336964847,0.56748412,1955.4,1955.1,16.4248]
[1688336965452,0.28671635,1955.3,1955.1,3.2078]
[1688336965645,0.28671635,1955.3,1954.9,3.2078]
[1688336965646,0.56748412,1955.2,1954.9,3.2078]
[1688336965952,0.56748412,1955.2,1954.9,8.3888]
[1688336966849,0.56748412,1955.2,1954.7,13.063]
[1688336966850,3.59651635,1955.1,1954.7,8.063]
[1688336967051,3.59651635,1955.1,1954.4,12.86757207]
[1688336967052,0.102,1955.0,1954.4,0.0076744]
[1688336967255,3.3098,1955.1,1954.4,0.0076744]
[1688336967453,3.2078,1954.9,1954.4,0.0076744]
[1688336967654,3.2078,1954.7,1954.4,0.0076744]
[1688336967947,3.2078,1954.5,1954.4,0.0076744]
[1688336968151,3.77528412,1954.5,1954.4,0.0076744]
[1688336968343,4.06200047,1954.5,1954.4,0.0076744]
[1688336969462,4.06200047,1954.5,1954.4,0.52972583]
[1688336969751,3.77528412,1954.5,1954.4,0.52972583]
[1688336970142,3.2078,1954.7,1954.4,0.52972583]
[1688336970541,3.2078,1954.7,1954.4,0.39313267]
[1688336971246,1.91980168,1955.2,1954.6,13.244]
[1688336971448,3.2078,1955.3,1954.7,0.36761471]
[1688336971844,3.2078,1955.3,1954.7,3.57541471]
[1688336972549,3.2078,1955.0,1954.7,0.36761471]
[1688336972850,0.28671635,1954.9,1954.7,0.36761471]
[1688336973052,3.2078,1954.8,1954.7,0.36761471]
[1688336973359,3.87728412,1954.8,1954.4,0.0076744]
[1688336973647,3.2078,1955.0,1954.4,0.0076744]
[1688336974052,3.2078,1955.0,1954.6,8.063]
[1688336974243,0.56748412,1954.9,1954.6,8.063]
[1688336974448,3.2078,1954.8,1954.7,0.36739189]
[1688336974647,3.49451635,1954.8,1954.7,0.36739189]
[1688336975252,3.2078,1954.8,1954.7,0.36739189]
[1688336975450,3.49451635,1954.8,1954.7,0.36739189]
[1688336975650,3.59651635,1954.8,1954.7,0.36739189]
[1688336976052,3.59651635,1954.8,1954.4,0.0076744]
[1688336976252,3.2078,1954.5,1954.4,0.0076744]
[1688336976452,3.49451635,1954.5,1954.4,0.0076744]
[1688336976652,4.06200047,1954.5,1954.4,0.0076744]
[1688336977049,4.16400047,1954.5,1954.4,0.0076744]
[1688336978263,0.102,1954.4,1953.7,0.12396694]
[1688336978556,3.2078,1954.0,1953.7,0.12396694]
[1688336979161,3.77528412,1954.0,1953.7,0.12396694]
[1688336979351,0.28671635,1953.9,1953.7,0.13164409]
[1688336979552,3.77528412,1953.8,1953.7,0.13164409]
[1688336980159,3.87728412,1953.8,1953.7,0.13164409]
[1688336982160,0.102,1953.6,1953.2,8.036]
[1688336982359,3.2078,1953.5,1953.2,8.036]
[1688336982756,3.2078,1953.5,1953.0,3.3578]
[1688336982957,3.2078,1953.5,1953.0,0.15]
[1688336982958,0.56748412,1953.4,1953.0,0.15]
[1688336983266,0.66948412,1953.4,1953.0,0.15]
[1688336983461,3.2078,1953.2,1953.0,0.15]
[1688336984467,4.06200047,1953.2,1953.1,0.79273502]
[1688336984863,4.08200047,1953.2,1953.1,0.79273502]
[1688336985265,3.2078,1953.8,1953.1,23.04271086]
[1688336985473,3.2078,1953.8,1953.4,8.019]
[1688336985761,0.56748412,1953.7,1953.2,3.84257363]
[1688336985963,0.56748412,1953.7,1953.5,0.63475599]
[1688336986160,0.28671635,1953.6,1953.1,8.063]
[1688336986360,0.28671635,1953.6,1953.0,0.15]
[1688336986361,3.2078,1953.2,1953.0,0.15]
[1688336986564,0.102,1953.4,1953.0,0.15]
[1688336986565,3.2078,1953.4,1953.0,0.15]
[1688336986970,0.66948412,1953.4,1953.0,0.15]
[1688336987563,3.87728412,1953.4,1953.0,0.15]
[1688336987760,0.56748412,1953.4,1953.0,0.15]
[1688336987965,0.58748412,1953.4,1953.0,0.15]
[1688336988667,0.102,1953.2,1953.0,0.15]
[1688336988869,3.87728412,1953.2,1953.0,0.15]
[1688336989269,0.28671635,1953.1,1953.0,0.15]
[1688336990061,0.38871635,1953.1,1952.1,16.84099767]
[1688336990270,0.00768206,1952.8,1952.1,3.2078]
[1688336990573,0.00768206,1952.8,1952.3,8.036]
[1688336990957,0.00768206,1952.8,1952.3,11.2438]
[1688336991168,0.00768206,1952.8,1952.7,8.036]
[1688336991868,0.29439841,1952.8,1952.4,8.063]
[1688336992072,0.00768206,1952.8,1952.4,8.063]
[1688336992267,0.00768206,1952.8,1952.4,13.244]
[1688336992469,0.00768206,1952.8,1952.7,8.036]
[1688336993068,0.00768206,1952.8,1952.4,5.181]
[1688336993259,0.00768206,1952.8,1952.4,8.3888]
[1688336993466,0.00768206,1952.8,1952.6,13.244]
[1688336993668,0.00768206,1952.8,1952.6,8.063]
[1688336993971,0.00768206,1952.8,1952.6,13.244]
[1688336994162,0.00768206,1952.8,1952.6,8.063]
[1688336995173,3.2078,1952.7,1952.1,3.2078]
[1688336995469,0.00768206,1952.8,1952.6,8.036]
[1688336995672,0.06338206,1952.8,1952.6,8.036]
[1688336996565,0.06338206,1952.8,1952.7,3.2078]
[1688336998065,0.06338206,1952.8,1952.6,8.036]
[1688336998373,0.85420047,1952.7,1952.6,8.036]
[1688336999670,0.28671635,1952.7,1952.6,8.79000789]
[1688337000071,0.28671635,1952.7,1952.6,0.75400789]
[1688337000471,3.83866618,1952.8,1952.6,0.75400789]
[1688337000672,0.06338206,1952.8,1952.6,9.14280789]
[1688337000869,3.2278,1953.4,1952.7,13.217]
[1688337000870,0.02,1953.4,1952.7,13.217]
[1688337001075,0.02,1953.4,1953.3,13.244]
[1688337001366,2.43058054,1954.1,1953.3,19.07086869]
[1688337001367,0.92148815,1954.1,1953.3,19.07086869]
[1688337001564,1.2281087,1954.9,1953.3,19.07086869]
[1688337001565,3.2078,1954.5,1953.9,13.55107]
[1688337001772,3.2078,1954.9,1954.4,13.244]
[1688337001972,3.2078,1954.7,1954.4,8.063]
[1688337002171,0.102,1954.5,1954.1,8.063]
[1688337002470,3.2078,1954.2,1954.0,0.00767578]
[1688337002772,0.28671635,1954.1,1954.0,0.00767578]
[1688337002973,0.95620047,1954.1,1954.0,0.00767578]
[1688337003270,0.102,1953.9,1953.4,8.063]
[1688337003469,3.2078,1953.7,1953.0,11.2708]
[1688337003675,3.2078,1953.9,1953.2,0.40539131]
[1688337003966,1.02348815,1954.3,1953.6,8.063]
[1688337003967,3.2078,1954.1,1953.6,8.063]
[1688337004171,0.00767715,1954.0,1953.6,16.75892]
[1688337004674,3.2078,1954.3,1953.6,16.75892]
[1688337004675,3.74238115,1954.7,1953.9,13.2]
[1688337004874,3.74238115,1954.7,1954.2,8.063]
[1688337005067,3.2078,1954.7,1954.6,8.019]
[1688337005267,13.063,1955.7,1954.6,8.019]
[1688337005268,3.2078,1955.0,1954.6,13.2]
[1688337005569,3.2078,1955.5,1955.1,8.063]
[1688337005872,3.21547146,1955.5,1955.1,8.063]
[1688337006081,3.21547146,1955.5,1955.4,8.019]
[1688337006269,0.00767146,1955.5,1955.4,8.019]
[1688337006469,3.2078,1956.0,1955.4,14.12146258]
[1688337006762,0.92148815,1956.1,1955.9,8.063]
[1688337006962,0.28671635,1956.1,1955.9,13.244]
[1688337007369,3.2078,1956.2,1955.9,13.244]
[1688337007574,3.21546852,1956.2,1956.1,8.063]
[1688337007766,3.50218487,1956.2,1956.1,8.063]
[1688337007970,3.28889524,1956.2,1956.1,13.244]
[1688337008175,0.08109524,1956.2,1956.1,13.244]
[1688337008472,0.00766852,1956.2,1956.1,13.244]
[1688337008672,0.29438487,1956.2,1956.1,8.063]
[1688337008972,3.50218487,1956.2,1955.9,0.00766852]
[1688337009168,3.2078,1956.0,1955.9,0.00766852]
[1688337009369,3.49451635,1956.0,1955.9,0.00766852]
[1688337009570,3.56621215,1956.0,1955.9,0.00766852]
[1688337011167,1.2799003,1956.0,1955.9,0.00766852]
[1688337011374,0.41387539,1956.2,1955.9,5.18866852]
[1688337011375,0.00766852,1956.2,1955.9,5.18866852]
[1688337011570,0.00766852,1956.2,1956.1,13.244]
[1688337012276,1.32634997,1956.9,1956.3,5.181]
[1688337012477,0.02464001,1957.2,1956.8,5.181]
[1688337012668,0.02464001,1957.2,1957.1,8.019]
[1688337012978,0.31135636,1957.2,1957.1,8.019]
[1688337013472,0.31135636,1957.2,1957.0,0.00766421]
[1688337013473,3.23244001,1957.2,1957.0,0.00766421]
[1688337013977,0.102,1957.0,1956.4,8.063]
[1688337014177,3.3098,1957.0,1956.4,8.063]
[1688337014370,3.3098,1957.0,1956.4,11.2708]
[1688337014878,3.3098,1957.0,1956.5,0.00766597]
[1688337014879,3.2078,1957.0,1956.5,0.00766597]
[1688337015176,3.2078,1957.0,1956.4,11.26346597]
[1688337015976,3.2078,1957.0,1956.5,0.00766597]
[1688337016177,0.02464001,1957.2,1956.7,8.063]
[1688337016370,0.02464001,1957.2,1956.9,8.036]
[1688337018078,0.02464001,1957.2,1957.1,8.019]
[1688337018374,0.02464001,1957.2,1957.1,13.47419506]
[1688337018577,4.001e-05,1957.2,1957.1,13.78075506]